fUST/lending_fUST_20250530
["ID","MTS","AMOUNT","RATE_DAILY","PERIOD"]
[363154237,1748603447693,-457.77,0.0002,2]
[363154239,1748603447702,-430.0,0.0002,2]
[363154241,1748603447711,-430.0,0.0002,2]
[363154243,1748603447720,-430.0,0.0002,2]
[363154245,1748603447728,-430.0,0.0002,2]
[363154247,1748603447738,-430.0,0.0002,2]
[363154249,1748603447747,-3416.83,0.0002,2]
[363154251,1748603447756,-430.0,0.0002,2]
[363154253,1748603447766,-430.0,0.0002,2]
[363154255,1748603447775,-155.01209388,0.0002,2]
[363154257,1748603447784,-840.3,0.0002,2]
[363154259,1748603447793,-482.16,0.0002,2]
[363154271,1748603447912,-430.0,0.0002,2]
[363154274,1748603447924,-1296.03,0.0002,2]
[363154276,1748603447934,-763.39,0.0002,2]
[363154278,1748603447943,-1411.57,0.0002,2]
[363154280,1748603447953,-430.0,0.0002,2]
[363154282,1748603447963,-430.0,0.0002,2]
[363154283,1748603447973,-430.0,0.0002,2]
[363154285,1748603447982,-430.0,0.0002,2]
[363154287,1748603447992,-430.0,0.0002,2]
[363154289,1748603448001,-696.76,0.0002,2]
[363154291,1748603448011,-864.5,0.0002,2]
[363154293,1748603448021,-430.0,0.0002,2]
[363154295,1748603448030,-430.0,0.0002,2]
[363154297,1748603448039,-430.0,0.0002,2]
[363154299,1748603448049,-430.0,0.0002,2]
[363154301,1748603448058,-430.0,0.0002,2]
[363154303,1748603448067,-430.0,0.0002,2]
[363154305,1748603448092,-441.6516569,0.0002,2]
[363154307,1748603448102,-971.48,0.0002,2]
[363154309,1748603448111,-9951.55,0.0002,2]
[363154310,1748603448121,-430.0,0.0002,2]
[363154312,1748603448130,-1727.63,0.0002,2]
[363154314,1748603448140,-430.0,0.0002,2]
[363154316,1748603448149,-430.0,0.0002,2]
[363154318,1748603448159,-461.338204,0.0002,2]
[363154320,1748603448171,-2833.03,0.0002,2]
[363154322,1748603448181,-715.85,0.0002,2]
[363154324,1748603448191,-430.0,0.0002,2]
[363154326,1748603448200,-1639.25,0.0002,2]
[363154328,1748603448210,-461.338204,0.0002,2]
[363154330,1748603448219,-919.62,0.0002,2]
[363154332,1748603448229,-430.0,0.0002,2]
[363154334,1748603448239,-3623.31,0.0002,2]
[363154336,1748603448248,-430.0,0.0002,2]
[363154338,1748603448258,-514.2,0.0002,2]
[363154340,1748603448268,-430.0,0.0002,2]
[363154342,1748603448277,-426.35854738,0.0002,2]
[363154344,1748603448287,-430.0,0.0002,2]
[363154346,1748603448296,-7826.05,0.0002,2]
[363154348,1748603448305,-430.0,0.0002,2]
[363154350,1748603448315,-430.0,0.0002,2]
[363154352,1748603448324,-1128.87,0.0002,2]
[363154354,1748603448334,-430.0,0.0002,2]
[363154356,1748603448345,-160.94721,0.0002,2]
[363154358,1748603448355,-430.0,0.0002,2]
[363154360,1748603448365,-6848.37,0.0002,2]
[363154362,1748603448374,-430.0,0.0002,2]
[363154364,1748603448384,-160.94721,0.0002,2]
[363154366,1748603448394,-238.53519198,0.0002,2]
[363154368,1748603448403,-434.55,0.0002,2]
[363154370,1748603448412,-1217.37,0.0002,2]
[363154372,1748603448421,-339.59261485,0.0002,2]
[363154373,1748603448431,-1680.95,0.0002,2]
[363154375,1748603448444,-2105.01,0.0002,2]
[363154377,1748603448453,-430.0,0.0002,2]
[363154379,1748603448463,-430.0,0.0002,2]
[363154381,1748603448474,-350.570561,0.0002,2]
[363154383,1748603448484,-9891.71,0.0002,2]
[363154385,1748603448495,-1602.17,0.0002,2]
[363154387,1748603448505,-430.0,0.0002,2]
[363154389,1748603448515,-152.30772,0.0002,2]
[363154391,1748603448525,-183.914486,0.0002,2]
[363154393,1748603448535,-430.0,0.0002,2]
[363154395,1748603448545,-350.570561,0.0002,2]
[363154397,1748603448555,-152.30772,0.0002,2]
[363154399,1748603448566,-468.8,0.0002,2]
[363154401,1748603448575,-183.914486,0.0002,2]
[363154403,1748603448585,-1747.07,0.0002,2]
[363154405,1748603448595,-430.0,0.0002,2]
[363154407,1748603448604,-159.987011,0.0002,2]
[363154409,1748603448614,-159.987011,0.0002,2]
[363154410,1748603448623,-472.19,0.0002,2]
[363154412,1748603448633,-759.61,0.0002,2]
[363154414,1748603448642,-430.0,0.0002,2]
[363154416,1748603448652,-509.07,0.0002,2]
[363154418,1748603448661,-430.0,0.0002,2]
[363154420,1748603448670,-1198.23,0.0002,2]
[363154422,1748603448680,-430.0,0.0002,2]
[363154424,1748603448689,-430.0,0.0002,2]
[363154426,1748603448698,-430.0,0.0002,2]
[363154428,1748603448708,-1034.92,0.0002,2]
[363154430,1748603448717,-2636.3,0.0002,2]
[363154432,1748603448727,-1667.99,0.0002,2]
[363154434,1748603448736,-430.0,0.0002,2]
[363154436,1748603448746,-430.0,0.0002,2]
[363154438,1748603448755,-1141.66,0.0002,2]
[363154440,1748603448764,-1801.77,0.0002,2]
[363154442,1748603448774,-430.0,0.0002,2]
[363154444,1748603448783,-430.0,0.0002,2]
[363154446,1748603448793,-430.0,0.0002,2]
[363154448,1748603448803,-3446.12,0.0002,2]
[363154450,1748603448812,-591.27,0.0002,2]
[363154451,1748603448821,-776.51,0.0002,2]
[363154453,1748603448834,-430.0,0.0002,2]
[363154456,1748603448846,-1837.82,0.0002,2]
[363154457,1748603448858,-912.31,0.0002,2]
[363154459,1748603448868,-4053.09,0.0002,2]
[363154461,1748603448878,-430.0,0.0002,2]
[363154463,1748603448887,-430.0,0.0002,2]
[363154465,1748603448897,-430.0,0.0002,2]
[363154467,1748603448907,-430.0,0.0002,2]
[363154469,1748603448917,-623.84,0.0002,2]
[363154471,1748603448927,-430.0,0.0002,2]
[363154473,1748603448937,-255.42819833,0.0002,2]
[363154475,1748603448947,-1952.36,0.0002,2]
[363154477,1748603448956,-5977.91,0.0002,2]
[363154479,1748603448966,-430.0,0.0002,2]
[363154481,1748603448975,-430.0,0.0002,2]
[363154483,1748603448985,-3863.26,0.0002,2]
[363154485,1748603448995,-780.19,0.0002,2]
[363154487,1748603449005,-430.0,0.0002,2]
[363154489,1748603449014,-1092.54,0.0002,2]
[363154491,1748603449024,-958.56,0.0002,2]
[363154493,1748603449034,-430.0,0.0002,2]
[363154495,1748603449044,-754.84,0.0002,2]
[363154497,1748603449055,-7422.59,0.0002,2]
[363154498,1748603449065,-430.0,0.0002,2]
[363154500,1748603449074,-430.0,0.0002,2]
[363154503,1748603449085,-430.0,0.0002,2]
[363154504,1748603449096,-193.30573625,0.0002,2]
[363154506,1748603449105,-829.66,0.0002,2]
[363154508,1748603449115,-1296.29,0.0002,2]
[363154510,1748603449125,-430.0,0.0002,2]
[363154512,1748603449135,-5183.25,0.0002,2]
[363154514,1748603449144,-430.0,0.0002,2]
[363154516,1748603449154,-151.0,0.0002,2]
[363154518,1748603449170,-430.0,0.0002,2]
[363154520,1748603449182,-430.0,0.0002,2]
[363154522,1748603449191,-430.0,0.0002,2]
[363154524,1748603449200,-2619.86,0.0002,2]
[363154526,1748603449209,-277.272807,0.0002,2]
[363154528,1748603449219,-1120.37,0.0002,2]
[363154530,1748603449231,-430.0,0.0002,2]
[363154532,1748603449240,-2107.05,0.0002,2]
[363154534,1748603449249,-277.272807,0.0002,2]
[363154536,1748603449259,-630.2,0.0002,2]
[363154538,1748603449268,-430.0,0.0002,2]
[363154539,1748603449278,-7381.36,0.0002,2]
[363154541,1748603449287,-430.0,0.0002,2]
[363154543,1748603449297,-430.0,0.0002,2]
[363154546,1748603449307,-3712.13,0.0002,2]
[363154547,1748603449316,-430.0,0.0002,2]
[363154549,1748603449325,-430.0,0.0002,2]
[363154551,1748603449335,-430.0,0.0002,2]
[363154553,1748603449346,-430.0,0.0002,2]
[363154555,1748603449355,-501.20381697,0.00020021,2]
[363154557,1748603449366,-435.52355721,0.00020021,2]
[363154559,1748603449376,-1000.0,0.00020021,2]
[363154561,1748603449385,-419.56473902,0.00020021,2]
[363154563,1748603449395,-1000.0,0.00020021,2]
[363154565,1748603449405,-1000.0,0.00020021,2]
[363154567,1748603449414,-1000.0,0.00020021,2]
[363154569,1748603449423,-1000.0,0.00020021,2]
[363154571,1748603449433,-245.0,0.00020047,2]
[363154572,1748603449445,-4251.34907781,0.00020072,2]
[363154574,1748603449455,-2893.23028064,0.00020173,2]
[363154576,1748603449464,-5728.83340577,0.00020173,2]
[363154578,1748603449474,-610.747764,0.00020187,2]
[363154580,1748603449485,-4251.34907781,0.00020245,2]
[363154582,1748603449495,-151.0,0.00020245,2]
[363154584,1748603449504,-228.734,0.00020253,2]
[363154586,1748603449514,-178.59002559,0.00020253,2]
[363154588,1748603449524,-430.0,0.00020273,2]
[363154590,1748603449534,-386.67182,0.00020273,2]
[363154592,1748603449544,-386.67182,0.00020273,2]
[363154594,1748603449553,-430.0,0.00020273,2]
[363154596,1748603449563,-430.0,0.00020273,2]
[363154598,1748603449572,-430.0,0.00020273,2]
[363154600,1748603449581,-430.0,0.00020273,2]
[363154602,1748603449591,-430.0,0.00020273,2]
[363154604,1748603449601,-430.0,0.00020273,2]
[363154606,1748603449611,-430.0,0.00020273,2]
[363154607,1748603449620,-430.0,0.00020273,2]
[363154609,1748603449630,-430.0,0.00020273,2]
[363154611,1748603449639,-498.86056502,0.00020273,2]
[363154613,1748603449648,-430.0,0.00020273,2]
[363154615,1748603449657,-430.0,0.00020273,2]
[363154617,1748603449667,-190.474441,0.00020273,2]
[363154619,1748603449676,-190.474441,0.00020273,2]
[363154621,1748603449685,-430.0,0.00020273,2]
[363154623,1748603449695,-430.0,0.00020273,2]
[363154625,1748603449703,-660.5,0.00020273,2]
[363154627,1748603449713,-575.08,0.00020273,2]
[363154629,1748603449721,-151.784493,0.00020273,2]
[363154631,1748603449731,-407.22,0.00020273,2]
[363154633,1748603449740,-430.0,0.00020273,2]
[363154635,1748603449749,-430.0,0.00020273,2]
[363154637,1748603449758,-430.0,0.00020273,2]
[363154639,1748603449767,-151.0,0.00020273,2]
[363154641,1748603449777,-151.0,0.00020273,2]
[363154643,1748603449786,-151.0,0.00020273,2]
[363154645,1748603449795,-194.390201,0.00020273,2]
[363154647,1748603449805,-194.390201,0.00020273,2]
[363154649,1748603449814,-151.0,0.00020273,2]
[363154651,1748603449825,-151.0,0.00020273,2]
[363154652,1748603449834,-430.0,0.00020273,2]
[363154654,1748603449844,-616.79,0.00020273,2]
[363154656,1748603449853,-430.0,0.00020273,2]
[363154658,1748603449863,-430.0,0.00020273,2]
[363154660,1748603449874,-263.97472825,0.00020273,2]
[363154662,1748603449884,-430.0,0.00020273,2]
[363154664,1748603449894,-430.0,0.00020273,2]
[363154666,1748603449902,-430.0,0.00020273,2]
[363154668,1748603449911,-430.0,0.00020273,2]
[363154669,1748603449920,-489.38,0.00020273,2]
[363154670,1748603449929,-430.0,0.00020273,2]
[363154671,1748603449938,-395.535456,0.00020273,2]
[363154672,1748603449947,-395.535456,0.00020273,2]
[363154673,1748603449956,-430.0,0.00020273,2]
[363154674,1748603449965,-430.0,0.00020273,2]
[363154675,1748603449974,-430.0,0.00020273,2]
[363154676,1748603449983,-430.0,0.00020273,2]
[363154677,1748603449992,-430.0,0.00020273,2]
[363154678,1748603450001,-165.15499267,0.00020273,2]
[363154679,1748603450010,-430.0,0.00020273,2]
[363154680,1748603450019,-430.0,0.00020273,2]
[363154681,1748603450028,-430.0,0.00020273,2]
[363154682,1748603450037,-305.74470567,0.00020273,2]
[363154683,1748603450046,-430.0,0.00020273,2]
[363154684,1748603450055,-430.0,0.00020273,2]
[363154685,1748603450063,-436.0858894,0.00020273,2]
[363154686,1748603450072,-430.0,0.00020273,2]
[363154687,1748603450081,-455.26542395,0.00020273,2]
[363154688,1748603450090,-430.0,0.00020273,2]
[363154689,1748603450100,-430.0,0.00020273,2]
[363154690,1748603450109,-430.0,0.00020273,2]
[363154691,1748603450117,-430.0,0.00020273,2]
[363154692,1748603450127,-430.0,0.00020273,2]
[363154693,1748603450135,-430.0,0.00020273,2]
[363154694,1748603450144,-430.0,0.00020273,2]
[363154695,1748603450153,-430.0,0.00020273,2]
[363154697,1748603450161,-430.0,0.00020273,2]
[363154699,1748603450169,-430.0,0.00020273,2]
[363154701,1748603450178,-430.0,0.00020273,2]
[363154703,1748603450187,-430.0,0.00020273,2]
[363154705,1748603450196,-430.0,0.00020273,2]
[363154707,1748603450205,-430.0,0.00020273,2]
[363154709,1748603450213,-430.0,0.00020273,2]
[363154722,1748603450314,-430.0,0.00020273,2]
[363154725,1748603450336,-151.0,0.00020273,2]
[363154727,1748603450347,-430.0,0.00020273,2]
[363154729,1748603450356,-151.0,0.00020273,2]
[363154730,1748603450365,-430.0,0.00020273,2]
[363154733,1748603450375,-430.0,0.00020273,2]
[363154735,1748603450385,-151.0,0.00020273,2]
[363154737,1748603450395,-430.0,0.00020273,2]
[363154739,1748603450405,-556.69,0.00020273,2]
[363154741,1748603450414,-430.0,0.00020273,2]
[363154743,1748603450423,-430.0,0.00020273,2]
[363154745,1748603450432,-430.0,0.00020273,2]
[363154747,1748603450447,-430.0,0.00020273,2]
[363154749,1748603450456,-151.0,0.00020273,2]
[363154751,1748603450466,-500.0,0.00020273,2]
[363154753,1748603450475,-151.0,0.00020273,2]
[363154755,1748603450484,-430.0,0.00020273,2]
[363154757,1748603450494,-494.04,0.00020273,2]
[363154759,1748603450504,-430.0,0.00020273,2]
[363154760,1748603450513,-1540.17,0.00020273,2]
[363154762,1748603450524,-465.57,0.00020273,2]
[363154764,1748603450534,-430.0,0.00020273,2]
[363154766,1748603450543,-430.0,0.00020273,2]
[363154768,1748603450553,-1082.48,0.00020273,2]
[363154770,1748603450563,-430.0,0.00020273,2]
[363154772,1748603450572,-430.0,0.00020273,2]
[363154774,1748603450581,-430.0,0.00020273,2]
[363154776,1748603450591,-430.0,0.00020273,2]
[363154778,1748603450602,-430.0,0.00020273,2]
[363154780,1748603450611,-430.0,0.00020273,2]
[363154782,1748603450620,-637.83,0.00020273,2]
[363154784,1748603450629,-430.0,0.00020273,2]
[363154786,1748603450639,-430.0,0.00020273,2]
[363154788,1748603450648,-430.0,0.00020273,2]
[363154790,1748603450658,-430.0,0.00020273,2]
[363154792,1748603450667,-1241.41,0.00020273,2]
[363154794,1748603450678,-614.04,0.00020273,2]
[363154796,1748603450688,-151.0,0.00020273,2]
[363154798,1748603450698,-430.0,0.00020273,2]
[363154800,1748603450707,-264.17758372,0.00020273,2]
[363154802,1748603450716,-430.0,0.00020273,2]
[363154804,1748603450725,-430.0,0.00020273,2]
[363154806,1748603450735,-430.0,0.00020273,2]
[363154808,1748603450744,-430.0,0.00020273,2]
[363154810,1748603450753,-754.46,0.00020273,2]
[363154812,1748603450762,-430.0,0.00020273,2]
[363154814,1748603450772,-258.1688206,0.00020273,2]
[363154816,1748603450782,-430.0,0.00020273,2]
[363154818,1748603450791,-430.0,0.00020273,2]
[363154820,1748603450800,-430.0,0.00020273,2]
[363154822,1748603450810,-430.0,0.00020273,2]
[363154824,1748603450819,-430.0,0.00020273,2]
[363154826,1748603450828,-415.342874,0.00020273,2]
[363154828,1748603450837,-1443.972747,0.00020273,2]
[363154830,1748603450851,-415.342874,0.00020273,2]
[363154832,1748603450860,-430.0,0.00020273,2]
[363154834,1748603450870,-1443.972747,0.00020273,2]
[363154836,1748603450879,-430.0,0.00020273,2]
[363154838,1748603450888,-1165.31,0.00020273,2]
[363154840,1748603450898,-430.0,0.00020273,2]
[363154842,1748603450907,-430.0,0.00020273,2]
[363154844,1748603450917,-484.04,0.00020273,2]
[363154846,1748603450927,-430.0,0.00020273,2]
[363154848,1748603450939,-1258.6,0.00020273,2]
[363154850,1748603450949,-430.0,0.00020273,2]
[363154852,1748603450958,-430.0,0.00020273,2]
[363154854,1748603450967,-457.77,0.00020273,2]
[363154856,1748603450977,-430.0,0.00020273,2]
[363154858,1748603450987,-430.0,0.00020273,2]
[363154860,1748603450996,-430.0,0.00020273,2]
[363154862,1748603451006,-430.0,0.00020273,2]
[363154864,1748603451015,-430.0,0.00020273,2]
[363154866,1748603451024,-3416.83,0.00020273,2]
[363154868,1748603451033,-430.0,0.00020273,2]
[363154870,1748603451042,-430.0,0.00020273,2]
[363154872,1748603451051,-840.3,0.00020273,2]
[363154874,1748603451060,-482.16,0.00020273,2]
[363154876,1748603451069,-430.0,0.00020273,2]
[363154878,1748603451079,-1296.03,0.00020273,2]
[363154880,1748603451087,-763.39,0.00020273,2]
[363154881,1748603451099,-1411.57,0.00020273,2]
[363154883,1748603451108,-430.0,0.00020273,2]
[363154885,1748603451117,-430.0,0.00020273,2]
[363154887,1748603451126,-430.0,0.00020273,2]
[363154889,1748603451135,-430.0,0.00020273,2]
[363154891,1748603451144,-430.0,0.00020273,2]
[363154893,1748603451153,-696.76,0.00020273,2]
[363154895,1748603451162,-864.5,0.00020273,2]
[363154897,1748603451171,-430.0,0.00020273,2]
[363154899,1748603451179,-430.0,0.00020273,2]
[363154901,1748603451188,-430.0,0.00020273,2]
[363154903,1748603451196,-430.0,0.00020273,2]
[363154905,1748603451204,-430.0,0.00020273,2]
[363154907,1748603451213,-430.0,0.00020273,2]
[363154909,1748603451222,-971.48,0.00020273,2]
[363154911,1748603451231,-9951.55,0.00020273,2]
[363154913,1748603451241,-430.0,0.00020273,2]
[363154915,1748603451250,-1727.63,0.00020273,2]
[363154917,1748603451259,-430.0,0.00020273,2]
[363154919,1748603451268,-328.26048495,0.00020273,2]
[363154921,1748603451278,-461.338204,0.00020273,2]
[363154923,1748603451286,-2833.03,0.00020273,2]
[363154925,1748603451295,-715.85,0.00020273,2]
[363154927,1748603451304,-430.0,0.00020273,2]
[363154929,1748603451314,-1639.25,0.00020273,2]
[363154931,1748603451324,-461.338204,0.00020273,2]
[363154933,1748603451341,-919.62,0.00020273,2]
[363154935,1748603451354,-430.0,0.00020273,2]
[363154937,1748603451366,-3623.31,0.00020273,2]
[363154939,1748603451379,-430.0,0.00020273,2]
[363154941,1748603451388,-514.2,0.00020273,2]
[363154942,1748603451399,-430.0,0.00020273,2]
[363154944,1748603451409,-311.25153084,0.00020273,2]
[363154947,1748603451420,-7826.05,0.00020273,2]
[363154949,1748603451429,-430.0,0.00020273,2]
[363154951,1748603451440,-430.0,0.00020273,2]
[363154952,1748603451452,-1128.87,0.00020273,2]
[363154954,1748603451461,-248.47388553,0.00020273,2]
[363154956,1748603451470,-160.94721,0.00020273,2]
[363154958,1748603451480,-430.0,0.00020273,2]
[363154960,1748603451489,-6848.37,0.00020273,2]
[363154962,1748603451497,-430.0,0.00020273,2]
[363154964,1748603451505,-160.94721,0.00020273,2]
[363154966,1748603451514,-434.55,0.00020273,2]
[363154968,1748603451525,-1217.37,0.00020273,2]
[363154970,1748603451534,-1680.95,0.00020273,2]
[363154972,1748603451543,-2105.01,0.00020273,2]
[363154974,1748603451553,-430.0,0.00020273,2]
[363154976,1748603451562,-350.570561,0.00020273,2]
[363154978,1748603451571,-9891.71,0.00020273,2]
[363154980,1748603451581,-430.0,0.00020273,2]
[363154982,1748603451590,-1602.17,0.00020273,2]
[363154984,1748603451602,-152.30772,0.00020273,2]
[363154986,1748603451611,-430.0,0.00020273,2]
[363154988,1748603451620,-183.914486,0.00020273,2]
[363154990,1748603451629,-430.0,0.00020273,2]
[363154992,1748603451639,-350.570561,0.00020273,2]
[363154994,1748603451648,-152.30772,0.00020273,2]
[363154996,1748603451657,-468.8,0.00020273,2]
[363154998,1748603451666,-183.914486,0.00020273,2]
[363155000,1748603451676,-1747.07,0.00020273,2]
[363155002,1748603451685,-430.0,0.00020273,2]
[363155004,1748603451695,-159.987011,0.00020273,2]
[363155006,1748603451704,-159.987011,0.00020273,2]
[363155008,1748603451714,-472.19,0.00020273,2]
[363155010,1748603451723,-759.61,0.00020273,2]
[363155012,1748603451733,-489.71765139,0.00020273,2]
[363155014,1748603451742,-509.07,0.00020273,2]
[363155016,1748603451752,-430.0,0.00020273,2]
[363155018,1748603451761,-1198.23,0.00020273,2]
[363155020,1748603451771,-430.0,0.00020273,2]
[363155022,1748603451781,-430.0,0.00020273,2]
[363155024,1748603451791,-264.11485506,0.00020273,2]
[363155026,1748603451801,-1034.92,0.00020273,2]
[363155028,1748603451811,-2636.3,0.00020273,2]
[363155030,1748603451819,-1667.99,0.00020273,2]
[363155032,1748603451829,-430.0,0.00020273,2]
[363155034,1748603451838,-430.0,0.00020273,2]
[363155036,1748603451849,-1141.66,0.00020273,2]
[363155038,1748603451858,-1801.77,0.00020273,2]
[363155040,1748603451869,-430.0,0.00020273,2]
[363155042,1748603451879,-430.0,0.00020273,2]
[363155044,1748603451888,-3446.12,0.00020273,2]
[363155046,1748603451897,-591.27,0.00020273,2]
[363155048,1748603451907,-776.51,0.00020273,2]
[363155050,1748603451916,-430.0,0.00020273,2]
[363155051,1748603451926,-1837.82,0.00020273,2]
[363155053,1748603451935,-4053.09,0.00020273,2]
[363155055,1748603451945,-912.31,0.00020273,2]
[363155057,1748603451954,-341.72782743,0.00020273,2]
[363155059,1748603451963,-430.0,0.00020273,2]
[363155061,1748603451974,-430.0,0.00020273,2]
[363155063,1748603451983,-430.0,0.00020273,2]
[363155065,1748603451993,-623.84,0.00020273,2]
[363155068,1748603452004,-430.0,0.00020273,2]
[363155069,1748603452013,-1952.36,0.00020273,2]
[363155072,1748603452024,-5977.91,0.00020273,2]
[363155074,1748603452034,-430.0,0.00020273,2]
[363155076,1748603452043,-471.26148848,0.00020273,2]
[363155078,1748603452054,-3863.26,0.00020273,2]
[363155080,1748603452063,-780.19,0.00020273,2]
[363155082,1748603452073,-430.0,0.00020273,2]
[363155084,1748603452082,-1092.54,0.00020273,2]
[363155086,1748603452092,-958.56,0.00020273,2]
[363155088,1748603452102,-430.0,0.00020273,2]
[363155089,1748603452111,-754.84,0.00020273,2]
[363155091,1748603452120,-7422.59,0.00020273,2]
[363155093,1748603452130,-430.0,0.00020273,2]
[363155095,1748603452139,-430.0,0.00020273,2]
[363155097,1748603452149,-430.0,0.00020273,2]
[363155099,1748603452159,-829.66,0.00020273,2]
[363155101,1748603452168,-1296.29,0.00020273,2]
[363155103,1748603452178,-430.0,0.00020273,2]
[363155105,1748603452187,-5183.25,0.00020273,2]
[363155107,1748603452196,-430.0,0.00020273,2]
[363155109,1748603452206,-430.0,0.00020273,2]
[363155111,1748603452215,-430.0,0.00020273,2]
[363155112,1748603452224,-430.0,0.00020273,2]
[363155114,1748603452234,-2619.86,0.00020273,2]
[363155116,1748603452243,-277.272807,0.00020273,2]
[363155118,1748603452252,-1120.37,0.00020273,2]
[363155120,1748603452262,-430.0,0.00020273,2]
[363155122,1748603452272,-2107.05,0.00020273,2]
[363155124,1748603452282,-277.272807,0.00020273,2]
[363155126,1748603452291,-630.2,0.00020273,2]
[363155127,1748603452300,-335.44539189,0.00020273,2]
[363155129,1748603452309,-7381.36,0.00020273,2]
[363155131,1748603452318,-430.0,0.00020273,2]
[363155133,1748603452328,-430.0,0.00020273,2]
[363155135,1748603452337,-3712.13,0.00020273,2]
[363155137,1748603452348,-430.0,0.00020273,2]
[363155139,1748603452359,-430.0,0.00020273,2]
[363155141,1748603452369,-430.0,0.00020273,2]
[363155143,1748603452378,-544.43810814,0.00020273,2]
[363155145,1748603452388,-150.0,0.00020399,2]
[363155147,1748603452398,-150.0,0.00020399,2]
[363155149,1748603452408,-150.0,0.00020399,2]
[363155151,1748603452418,-150.0,0.00020399,2]
[363155153,1748603452427,-150.0,0.00020399,2]
[363155155,1748603452436,-961.0,0.00020399,2]
[363155158,1748603452556,-708.0,0.00020399,2]
[363155159,1748603452567,-2228.0,0.00020399,2]
[363155160,1748603452576,-151.0,0.00020417,2]
[363155161,1748603452586,-151.0,0.00020417,2]
[363155163,1748603452597,-151.0,0.00020417,2]
[363155165,1748603452607,-151.0,0.00020417,2]
[363155167,1748603452616,-310.66865,0.00020417,2]
[363155170,1748603452626,-310.66865,0.00020417,2]
[363155172,1748603452636,-330.732019,0.00020417,2]
[363155174,1748603452646,-330.732019,0.00020417,2]
[363155176,1748603452655,-172.688586,0.00020417,2]
[363155178,1748603452665,-4251.34907781,0.00020417,3]
[363155180,1748603452675,-167.95035286,0.00020521,2]
[363155182,1748603452684,-1098.06223443,0.00020521,2]
[363155184,1748603452695,-1000.0,0.00020521,2]
[363155185,1748603452704,-1000.0,0.00020521,2]
[363155187,1748603452714,-651.73966643,0.00020521,2]
[363155189,1748603452723,-1000.0,0.00020521,2]
[363155191,1748603452732,-1000.0,0.00020521,2]
[363155193,1748603452742,-297.015611,0.00020521,2]
[363155195,1748603452751,-1016.90585791,0.00020521,2]
[363155197,1748603452761,-850.237869,0.00020521,2]
[363155199,1748603452770,-1000.0,0.00020521,2]
[363155201,1748603452780,-264.84387943,0.00020521,2]
[363155203,1748603452789,-1000.0,0.00020521,2]
[363155205,1748603452798,-1000.0,0.00020521,2]
[363155207,1748603452808,-502.0667669,0.00020521,2]
[363155209,1748603452818,-350.570561,0.00020521,2]
[363155211,1748603452827,-350.570561,0.00020521,2]
[363155213,1748603452837,-159.987011,0.00020521,2]